bitfinex-derivatives/quotes_ETHF0:USTF0_20250804
["timestamp","ask_amount","ask_price","bid_price","bid_amount"]
[1754329905411,4.9061,3682.4,3682.3,1.4246]
[1754329905603,46.24917,3682.4,3682.0,3.58342]
[1754329905906,46.24917,3682.4,3681.7,5.0663]
[1754329905907,4.9061,3681.8,3681.7,5.0663]
[1754329906110,3.2078,3682.2,3681.4,2.1304]
[1754329906111,2.9485,3681.7,3681.4,2.1304]
[1754329906402,3.49171,3681.4,3681.1,2.1304]
[1754329906604,0.54326,3681.1,3680.7,1.2197]
[1754329906803,3.2078,3681.4,3680.8,0.5433]
[1754329907003,0.8798,3681.2,3680.9,0.54328]
[1754329907208,2.9485,3681.1,3681.0,0.9107]
[1754329907414,0.54326,3681.2,3680.8,0.9107]
[1754329907606,2.9485,3680.9,3680.8,3.0403]
[1754329907807,43.7485,3680.9,3680.8,0.9107]
[1754329908406,2.9485,3680.8,3680.7,0.54331]
[1754329908807,2.9485,3680.8,3680.7,2.67371]
[1754329909006,3.2078,3681.4,3681.0,0.54327]
[1754329909318,40.8,3681.1,3681.0,3.58357]
[1754329909806,40.8,3681.1,3681.0,1.45317]
[1754329910011,40.8,3681.1,3681.0,3.58357]
[1754329910610,1.7368,3681.0,3680.7,2.67291]
[1754329910811,40.8,3681.1,3680.7,1.45321]
[1754329911011,2.9485,3681.0,3680.7,1.45321]
[1754329911211,40.8,3681.1,3680.6,0.54333]
[1754329911410,2.9485,3681.0,3680.5,6.79144]
[1754329911607,44.0078,3681.1,3680.5,5.3382]
[1754329912011,1.7368,3680.7,3680.5,5.3382]
[1754329912214,2.9485,3680.6,3680.5,3.2078]
[1754329912509,1.2117,3680.8,3680.1,4.39882]
[1754329912715,1.2117,3680.8,3680.3,1.8206]
[1754329912912,2.9485,3681.0,3680.3,3.2078]
[1754329913112,2.9485,3681.0,3680.4,3.0403]
[1754329913312,40.8,3680.5,3680.4,3.58366]
[1754329914011,3.2078,3681.5,3681.4,0.54321]
[1754329914217,3.2078,3681.5,3681.4,1.76291]
[1754329914613,4.0648,3681.5,3681.4,1.76291]
[1754329914816,4.9446,3681.5,3681.4,1.76291]
[1754329915123,44.8648,3681.5,3681.4,1.76291]
[1754329915621,44.0078,3681.5,3681.4,1.76621]
[1754329915814,40.8,3681.5,3681.4,1.76621]
[1754329916013,3.2078,3681.9,3681.7,0.54317]
[1754329916213,3.2078,3681.9,3681.7,1.75987]
[1754329916419,3.2078,3682.4,3682.0,0.54313]
[1754329916620,3.2078,3682.4,3681.7,19.43217]
[1754329916621,3.2078,3682.4,3682.1,1.2167]
[1754329916817,3.2078,3682.4,3682.3,1.75978]
[1754329917121,40.8,3682.4,3682.3,1.75978]
[1754329917419,0.8459,3683.2,3683.1,1.75966]
[1754329917816,0.8459,3683.8,3683.7,1.75958]
[1754329918917,3.2078,3684.2,3683.1,22.0968]
[1754329919121,1.6976,3684.0,3683.1,22.0968]
[1754329919315,1.2143,3683.9,3683.6,0.54288]
[1754329919517,1.2143,3683.7,3683.6,0.54288]
[1754329919716,2.9119,3683.7,3683.6,0.54288]
[1754329920219,2.9119,3683.6,3683.5,0.5429]
[1754329920422,1.6976,3683.6,3683.5,1.7596]
[1754329920822,2.9119,3683.6,3683.5,1.7596]
[1754329921214,2.9119,3683.6,3683.5,0.5429]
[1754329921420,2.9119,3683.6,3683.5,1.7596]
[1754329921624,0.8459,3683.6,3683.5,1.7596]
[1754329922018,1.6976,3683.6,3683.5,1.7596]
[1754329922520,40.8,3683.6,3683.5,2.3831]
[1754329922723,3.2078,3684.2,3684.0,1.75953]
[1754329923022,0.8517,3684.2,3684.1,1.2167]
[1754329923221,2.066,3684.2,3684.1,1.2167]
[1754329923518,3.75054,3684.7,3684.2,0.54279]
[1754329923719,40.8,3684.3,3683.5,22.6337]
[1754329923920,40.8,3684.3,3683.9,0.54283]
[1754329924124,40.8,3684.3,3684.0,0.54282]
[1754329924325,2.066,3684.1,3684.0,0.54282]
[1754329924623,2.9119,3684.1,3684.0,0.54282]
[1754329925026,43.7119,3684.1,3684.0,0.54282]
[1754329928924,43.7119,3684.1,3684.0,1.75952]
[1754329929126,40.8,3684.1,3684.0,1.75952]
[1754329929321,41.6459,3684.1,3684.0,1.75952]
[1754329929929,42.4976,3684.1,3684.0,0.54282]
[1754329930331,1.2143,3684.0,3683.9,3.75064]
[1754329930536,2.9119,3684.0,3683.9,3.75064]
[1754329930932,2.9119,3684.0,3683.9,3.2078]
[1754329931127,2.9119,3683.9,3683.7,0.54287]
[1754329931333,2.9119,3683.8,3683.7,0.54287]
[1754329932230,2.9119,3683.8,3683.1,1.3574]
[1754329932434,3.2078,3683.9,3683.0,4.7024588]
[1754329932435,2.9119,3683.7,3683.5,0.5429]
[1754329932633,43.7119,3683.6,3683.5,0.5429]
[1754329933537,41.6459,3683.6,3683.5,1.7596]
[1754329935235,43.7119,3683.6,3683.5,1.7596]
[1754329936038,43.7119,3683.6,3683.5,0.5429]
[1754329936544,43.7119,3683.6,3683.5,1.7596]
[1754329937341,41.6459,3683.6,3683.5,1.7596]
[1754329938038,42.4976,3683.6,3683.5,3.1265]
[1754329939737,43.7119,3683.6,3683.5,3.1265]
[1754329942434,41.6459,3683.6,3683.5,3.1265]
[1754329942637,2.8876,3684.1,3684.0,3.12643]
[1754329942942,0.8459,3684.1,3684.0,3.74993]
[1754329943536,43.6876,3684.1,3684.0,3.12643]
[1754329943736,44.9019,3684.1,3684.0,3.12643]
[1754329944138,40.8,3684.1,3684.0,3.74993]
[1754329950544,41.6946,3684.1,3684.0,3.74993]
[1754329951747,43.761,3684.1,3684.0,19.41383]
[1754329952150,43.761,3684.1,3684.0,0.54283]
[1754329952453,4.9329,3684.0,3683.9,0.54284]
[1754329952655,4.9329,3684.0,3683.9,19.41384]
[1754329953351,45.7329,3684.0,3683.9,19.41384]
[1754329954148,43.6665,3684.0,3683.9,22.02804]
[1754329954452,43.6665,3684.0,3683.9,22.65044]
[1754329954453,40.8,3684.0,3683.9,22.65044]
[1754329955252,40.8,3684.0,3683.9,3.15704]
[1754329955550,43.761,3684.0,3683.9,22.02704]
[1754329955952,43.761,3684.0,3683.9,3.15704]
[1754329956148,43.761,3684.0,3683.9,22.02704]
[1754329957153,43.761,3684.0,3683.9,19.41184]
[1754329957848,43.761,3684.0,3683.9,19.41084]
[1754329958048,42.5706,3684.0,3683.9,22.02504]
[1754329958355,41.6946,3684.0,3683.9,22.64744]
[1754329958550,42.5706,3684.0,3683.9,22.02504]
[1754329958946,43.761,3684.0,3683.9,19.41184]
[1754329960345,41.6946,3684.0,3683.9,22.02604]
[1754329960555,40.8,3684.0,3683.9,22.64844]
[1754329965757,5.0383,3685.0,3684.9,0.5427]
[1754329966055,5.0383,3685.0,3684.9,19.4087]
[1754329966255,5.9329,3685.0,3684.9,19.4087]
[1754329966452,5.9329,3685.0,3684.7,0.54272]
[1754329966650,5.9329,3685.0,3684.3,3.75059]
[1754329966651,4.9329,3684.4,3684.3,3.75059]
[1754329966850,4.9329,3684.4,3684.3,22.61659]
[1754329967050,4.9329,3684.4,3684.3,0.54279]
[1754329967257,45.7329,3684.4,3684.3,0.54279]
[1754329967446,45.7329,3684.4,3684.3,19.40779]
[1754329969152,45.7329,3684.4,3684.1,0.5428]
[1754329969354,4.9329,3684.0,3683.7,3.2078]
[1754329969658,4.9329,3683.8,3683.7,7.80428]
[1754329970049,4.9329,3683.8,3683.7,23.43978]
[1754329970250,45.7329,3683.8,3683.7,23.43978]
[1754329970459,45.7329,3683.8,3683.7,26.08468]
[1754329971058,45.7329,3683.8,3683.7,23.44078]
[1754329972357,45.7329,3683.8,3683.7,3.75068]
[1754329972557,45.7329,3683.8,3683.7,18.864]
[1754329972758,45.7329,3683.8,3683.6,0.54288]
[1754329972954,45.7329,3683.8,3683.7,18.864]
[1754329974359,45.7329,3683.8,3683.7,19.6891]
[1754329974556,45.7329,3683.8,3683.7,20.9104]
[1754329975155,45.7329,3683.8,3683.7,22.9176]
[1754329976156,45.7329,3683.8,3683.7,18.864]
[1754329978456,45.7329,3683.8,3683.7,19.6175]
[1754329978657,45.7329,3683.8,3683.7,20.7887]
[1754329979453,43.6665,3683.8,3683.7,22.8098]
[1754329979653,45.7444,3683.8,3683.7,22.8098]
[1754329979858,45.7444,3683.8,3683.7,21.3619]
[1754329980059,42.7719,3683.8,3683.6,0.54288]
[1754329980260,4.8712,3683.7,3683.6,0.54288]
[1754329980459,3.1512,3683.3,3683.2,0.54295]
[1754329980660,4.8712,3683.3,3683.2,19.40495]
[1754329980865,45.6712,3683.3,3683.2,19.40495]
[1754329981365,45.6712,3683.3,3683.2,20.15845]
[1754329982160,45.6712,3683.3,3683.2,23.35075]
[1754329982365,45.6712,3683.3,3683.2,23.34975]
[1754329982566,45.6712,3683.3,3683.2,4.48875]
[1754329982762,45.6712,3683.3,3683.2,23.34975]
[1754329983561,42.84,3683.3,3683.2,4.48875]
[1754329983766,44.9179,3683.3,3683.2,23.35075]
[1754329984059,44.9179,3683.3,3683.2,0.54295]
[1754329984261,44.9179,3683.3,3683.2,19.40395]
[1754329984565,4.8712,3683.2,3683.1,0.54295]
[1754329984765,4.1179,3683.1,3683.0,0.54297]
[1754329984970,4.8712,3683.1,3683.0,19.40397]
[1754329985172,4.8712,3683.1,3683.0,22.17857]
[1754329985377,44.4479,3683.1,3683.0,23.34977]
[1754329985569,45.6712,3683.1,3683.0,23.34977]
[1754329986667,42.2623,3683.1,3683.0,23.97147]
[1754329986872,40.8,3683.1,3683.0,23.97147]
[1754329987175,1.2233,3683.9,3683.8,3.1262]
[1754329987176,0.8654,3683.9,3683.8,3.1262]
[1754329987372,0.8654,3684.2,3684.1,3.1262]
[1754329987568,0.8654,3684.2,3684.1,21.9862]
[1754329987973,8.079,3684.7,3684.6,1.29624]
[1754329988175,5.2478,3684.7,3684.6,21.32744]
[1754329988376,5.2478,3684.7,3684.6,21.90724]
[1754329988676,48.879,3684.7,3684.6,21.90724]
[1754329990076,47.6557,3684.7,3684.6,21.90724]
[1754329990280,46.8011,3684.7,3684.6,22.52894]
[1754329990776,45.6712,3684.7,3684.6,21.90724]
[1754329990977,45.6712,3684.7,3684.6,20.15624]
[1754329991478,45.6712,3684.7,3684.6,20.15424]
[1754329991882,45.6712,3684.7,3684.6,1.29624]
[1754329992178,45.6712,3684.7,3684.6,19.39974]
[1754329993584,45.6712,3684.7,3684.6,21.90424]
[1754329995081,45.6712,3684.7,3684.6,3.04724]
[1754329995277,45.6712,3684.7,3684.6,21.90124]
[1754329995882,45.6712,3684.7,3684.6,19.39674]
[1754329996882,45.6712,3684.7,3684.6,19.39574]
[1754329997082,45.6712,3684.7,3684.2,1.35701]
[1754329997277,4.8712,3684.7,3684.3,1.35697]
[1754329997479,4.0058,3684.4,3684.3,22.58809]
[1754329997679,4.8712,3684.4,3684.3,4.48859]
[1754329997879,45.6712,3684.4,3684.3,4.48859]
[1754329998784,42.2623,3684.4,3684.3,5.11029]
[1754329999179,41.6654,3684.4,3684.3,5.11029]
[1754329999586,41.6654,3684.4,3681.4,3.2078]
[1754329999587,2.714,3684.0,3681.4,3.2078]
[1754329999885,0.54305,3682.6,3680.4,0.9253]
[1754330000076,3.2078,3681.1,3680.5,0.54335]
[1754330000280,1.35769,3682.4,3680.5,0.54335]
[1754330000281,3.2078,3680.6,3680.5,0.9253]
[1754330000782,3.2078,3680.6,3680.5,1.7934]
[1754330000986,44.0078,3680.6,3680.5,1.7934]
[1754330001182,44.0078,3680.6,3680.5,6.31857941]
[1754330001687,44.0078,3680.6,3680.5,0.9253]
[1754330002395,44.0078,3680.6,3680.5,2.0965]
[1754330004090,44.0078,3680.6,3680.5,0.9253]
[1754330004593,44.0078,3680.6,3680.5,11.70815095]
[1754330005890,3.2078,3681.0,3680.7,0.54332]
[1754330006190,3.2078,3681.0,3680.5,28.45155095]
[1754330006191,3.2078,3681.0,3680.9,0.54329]
[1754330006392,22.9058,3681.9,3681.5,0.54319]
[1754330006587,0.8982,3681.8,3681.7,5.12317154]
[1754330006784,40.8,3681.8,3681.7,5.12317154]
[1754330006990,40.8,3681.8,3681.7,5.42997941]
[1754330007282,40.8,3681.8,3681.7,11.83755095]
[1754330009585,42.9571,3681.8,3681.7,9.66015095]
[1754330009786,43.8152,3681.8,3681.7,4.52517941]
[1754330009992,40.8,3681.8,3681.3,19.678]
[1754330010290,40.8,3681.8,3681.4,4.52517941]
[1754330010291,4.0659,3681.5,3681.4,4.52517941]
[1754330010686,4.4667,3681.5,3681.4,5.44177941]
[1754330010886,45.2667,3681.5,3681.4,6.71437941]
[1754330011291,46.1649,3681.5,3681.4,6.71437941]
[1754330011496,40.8,3681.5,3681.4,11.83755095]
[1754330011788,3.2078,3681.9,3681.8,0.54315]
[1754330011986,4.16029864,3682.5,3682.4,3.63707]
[1754330012193,4.10032171,3682.5,3682.4,8.16224941]
[1754330012594,4.10032171,3682.5,3682.4,11.83755095]
[1754330012786,46.65662171,3682.5,3682.4,11.83755095]
[1754330013393,47.91552171,3682.5,3682.4,10.01615095]
[1754330014195,47.91552171,3682.5,3682.4,10.92095095]
[1754330014495,46.65662171,3682.5,3682.4,11.83755095]
[1754330014789,46.65662171,3682.5,3682.4,8.74355095]
[1754330014993,47.91552171,3682.5,3682.4,8.74355095]
[1754330015393,47.91552171,3682.5,3682.3,0.54307]
[1754330015394,3.0152,3682.4,3682.3,0.54307]
[1754330016191,0.8982,3682.3,3681.8,19.621]
[1754330016398,43.8152,3681.9,3681.8,27.78332941]
[1754330016584,42.5563,3681.9,3681.8,27.47652154]
[1754330016783,42.5563,3681.9,3681.8,32.00170095]
[1754330017284,42.5563,3681.9,3681.8,28.90770095]
[1754330017492,42.5563,3681.9,3681.8,32.00170095]
[1754330018892,40.8,3681.9,3681.8,32.00170095]
[1754330020500,40.8,3681.9,3681.8,12.38070095]
[1754330020793,40.8,3681.9,3681.8,31.96270095]
[1754330021692,43.8152,3681.9,3681.8,30.12630095]
[1754330021897,43.8152,3681.9,3681.8,31.94770095]
[1754330022195,42.5563,3681.9,3681.8,31.94770095]
[1754330022688,43.8152,3681.9,3681.8,31.94770095]
[1754330023094,43.8152,3681.9,3681.8,29.58315095]
[1754330023297,3.0152,3681.8,3681.2,40.3686]
[1754330023492,3.0152,3681.9,3681.6,5.49097154]
[1754330023694,3.0152,3681.8,3681.7,19.558]
[1754330023995,43.8152,3681.8,3681.7,25.35577941]
[1754330024294,43.8152,3681.8,3681.7,27.17717941]
[1754330024599,40.8,3681.8,3681.7,31.39555095]
[1754330025300,42.5563,3681.8,3681.7,31.39555095]
[1754330025607,43.8152,3681.8,3681.7,29.57415095]
[1754330025898,43.8152,3681.8,3681.7,28.30155095]
[1754330026098,43.8152,3681.8,3681.7,28.28055095]
[1754330027095,3.0152,3681.7,3681.6,1.2726]
[1754330027300,3.2078,3682.0,3681.7,4.52517941]
[1754330027494,3.2078,3682.0,3681.9,7.31237154]
[1754330027797,44.0078,3682.0,3681.9,7.31237154]
[1754330027992,44.0078,3682.0,3681.9,9.63177941]
[1754330028198,47.023,3682.0,3681.9,4.52517941]
[1754330029001,47.023,3682.0,3681.9,19.524]
[1754330029301,5.1001,3681.6,3681.5,5.1066]
[1754330029494,5.1001,3681.6,3681.5,24.6196]
[1754330029701,5.1001,3681.6,3681.5,33.90635095]
[1754330030092,49.1079,3681.6,3681.5,24.03617941]
[1754330030401,49.1079,3681.6,3681.4,0.5432]
[1754330030402,3.0152,3681.5,3681.4,0.54321]
[1754330030605,3.0152,3681.5,3681.4,20.04521]
[1754330030803,3.0152,3681.5,3681.4,19.502]
[1754330031103,43.8152,3681.5,3681.4,19.502]
[1754330031301,40.8,3681.5,3681.4,19.497]
[1754330031998,3.0152,3681.4,3681.0,3.2078]
[1754330032203,3.0152,3681.3,3681.1,28.24055095]
[1754330032406,3.0152,3681.2,3681.1,28.78381095]
[1754330032608,3.0152,3681.2,3681.1,20.04026]
[1754330032901,5.1001,3681.2,3681.1,27.22373941]
[1754330033096,44.6412,3681.2,3681.1,27.85063941]
[1754330033304,40.8,3681.2,3681.1,29.67203941]
[1754330033599,42.5563,3681.2,3681.1,29.67203941]
[1754330033996,43.8152,3681.2,3681.1,29.67203941]
[1754330035295,42.5563,3681.2,3681.1,29.67203941]
[1754330035903,40.8,3681.2,3681.1,33.89041095]
[1754330036704,40.8,3681.2,3681.1,33.85641095]
[1754330038205,40.8,3681.2,3681.1,33.85141095]
[1754330038802,40.8,3681.2,3681.1,14.39341095]
[1754330039002,40.8,3681.2,3681.1,33.84541095]
[1754330039602,42.6116,3681.2,3681.1,14.39341095]
[1754330039803,43.8084,3681.2,3681.1,24.51243941]
[1754330040005,47.0162,3681.2,3681.1,24.51243941]
[1754330040206,47.0162,3681.2,3681.1,4.52517941]
[1754330040413,47.0162,3681.2,3681.1,23.96517941]
[1754330041909,47.0162,3681.2,3681.1,25.40957941]
[1754330042102,47.0162,3681.2,3681.1,26.62157941]
[1754330042301,47.0162,3681.2,3681.1,27.23667941]
[1754330042709,44.0078,3681.2,3681.1,29.08847941]
[1754330043304,40.8,3681.2,3681.1,33.30685095]
[1754330044398,42.6116,3681.2,3681.1,29.01595095]
[1754330044697,2.0618,3681.1,3681.0,0.54326]
[1754330044900,5.0702,3681.1,3681.0,29.30193154]
[1754330045105,4.4125,3681.3,3681.2,5.66654]
[1754330045308,47.94862567,3681.3,3681.2,29.29091154]
[1754330045508,48.2209,3681.3,3681.2,29.59771941]
[1754330045710,49.14541212,3681.3,3681.2,27.74591941]
[1754330045908,48.2209,3681.3,3681.2,27.74591941]
[1754330046309,48.2209,3681.3,3681.2,29.59771941]
[1754330046614,48.2209,3681.3,3681.2,27.74591941]
[1754330048014,48.2209,3681.3,3681.2,4.52517941]
[1754330048312,48.2209,3681.3,3681.2,23.90217941]
[1754330048612,48.2209,3681.3,3681.2,26.55857941]
[1754330048806,48.2209,3681.3,3681.2,27.17367941]
[1754330049212,48.2209,3681.3,3681.2,27.16867941]
[1754330049411,45.2125,3681.3,3681.2,29.02047941]
[1754330049611,44.0078,3681.3,3681.2,29.02047941]
[1754330050110,40.8,3681.3,3681.2,33.23585095]
[1754330054019,47.0162,3681.3,3681.2,30.76895095]
[1754330054513,44.0078,3681.3,3681.2,28.11255095]
[1754330054714,47.0162,3681.3,3681.2,23.89417941]
[1754330055704,47.0162,3681.3,3681.2,23.85417941]
[1754330055910,47.0162,3681.3,3680.2,1.8518]
[1754330056110,2.9165,3680.6,3680.5,6.82122154]
[1754330056323,5.0702,3680.6,3680.5,33.75120095]
[1754330056517,45.8702,3680.6,3680.5,33.75120095]
[1754330056816,45.8702,3680.6,3680.5,31.89940095]
[1754330057118,45.8702,3680.6,3680.5,28.62790095]
[1754330057808,45.8702,3680.6,3680.5,19.341]
[1754330058413,45.8702,3680.6,3680.0,0.22023282]
[1754330058610,2.0618,3680.3,3680.2,4.21837154]
[1754330058817,2.0618,3680.3,3680.2,23.54037154]
[1754330058818,5.0702,3680.3,3680.2,23.54037154]
[1754330059016,5.0702,3680.3,3680.2,28.06555095]
[1754330059418,45.8702,3680.3,3680.2,28.06555095]
[1754330060112,45.8702,3680.3,3680.2,30.72195095]
[1754330060315,44.6734,3680.3,3680.2,28.06555095]
[1754330060521,45.8702,3680.3,3680.2,28.06555095]
[1754330060825,45.8702,3680.3,3680.2,19.322]
[1754330061813,1.8116,3680.2,3680.1,0.5434]
[1754330062018,5.0702,3680.2,3680.1,24.37857941]
[1754330062219,5.0702,3680.2,3680.1,26.43807941]
[1754330062417,45.8702,3680.2,3679.8,0.9538]
[1754330062626,8.278,3679.9,3679.8,0.54344]
[1754330062922,8.278,3679.9,3679.8,24.96374]
[1754330063222,49.078,3679.9,3679.8,29.48891941]
[1754330063420,47.8812,3679.9,3679.8,29.48891941]
[1754330063818,47.8812,3679.9,3679.8,10.19191941]
[1754330064021,47.8812,3679.9,3679.8,29.51091941]
[1754330064224,49.078,3679.9,3679.8,29.51091941]
[1754330064522,47.8812,3679.9,3679.8,29.51091941]
[1754330064730,44.0078,3679.9,3679.8,29.50691941]
[1754330064911,40.8,3679.9,3679.8,33.72529095]
[1754330065313,3.2078,3680.4,3680.3,5.66668]
[1754330065519,3.96879864,3680.8,3680.7,5.66662]
[1754330065715,3.08110527,3680.8,3680.7,30.51837095]
[1754330065916,0.92390663,3680.8,3680.7,30.51837095]
[1754330066317,41.72390663,3680.8,3680.7,30.51837095]
[1754330066818,0.95249864,3681.3,3681.2,0.54324]
[1754330067017,0.95249864,3681.3,3681.2,28.86589095]
[1754330067219,0.95249864,3681.4,3681.2,28.86589095]
[1754330067418,2.11589864,3681.5,3681.4,1.94851]
[1754330067612,3.04429864,3681.5,3681.4,23.32511]
[1754330067817,43.84429864,3681.5,3681.4,28.86086095]
[1754330068021,40.8,3681.5,3681.4,28.86086095]
[1754330069618,40.8,3681.5,3681.4,29.07895864]
[1754330070820,41.6762,3681.5,3681.4,28.83786095]
[1754330071026,43.8513,3681.5,3681.4,28.83786095]
[1754330071325,42.6046,3681.5,3681.4,28.83786095]
[1754330071625,43.8513,3681.5,3681.4,28.83786095]
[1754330072118,43.8513,3681.5,3681.4,1.86058941]
[1754330072316,44.80379864,3681.5,3681.4,22.55088941]
[1754330072529,43.55709864,3681.5,3681.4,24.61748941]
[1754330073025,43.8513,3681.5,3681.4,24.61748941]
[1754330073723,42.6046,3681.5,3681.4,24.61748941]
[1754330073919,40.8,3681.5,3681.4,28.83586095]
[1754330077222,41.7284,3681.5,3681.4,28.83586095]
[1754330077829,43.8513,3681.5,3681.4,28.83586095]
[1754330078132,43.8513,3681.5,3681.4,25.32296095]
[1754330079327,43.8513,3681.5,3681.4,27.89356095]
[1754330079526,43.8513,3681.5,3681.4,26.72826095]
[1754330079829,43.8513,3681.5,3681.4,25.94006095]
[1754330080227,1.9408,3681.2,3681.1,3.2078]
[1754330080430,4.9921,3681.2,3681.1,22.4278]
[1754330080629,4.9921,3681.2,3681.1,27.53716095]
[1754330080828,45.7921,3681.2,3681.1,27.53716095]
[1754330081026,45.7921,3681.2,3681.1,28.08042095]
[1754330081227,45.7921,3681.2,3681.0,0.54327]
[1754330081424,3.0513,3680.9,3680.8,1.43428941]
[1754330081730,1.9408,3681.0,3680.2,1.8046]
[1754330081731,1.9408,3680.3,3680.2,0.54338]
[1754330081929,4.9921,3680.3,3680.2,19.78738]
[1754330082130,45.7921,3680.3,3680.2,20.67836941]
[1754330082531,45.7921,3680.3,3680.2,22.46076941]
[1754330084840,45.7921,3680.3,3680.2,20.13498941]
[1754330085733,45.7921,3680.3,3680.2,21.54028941]
[1754330085932,45.7921,3680.3,3680.2,22.70558941]
[1754330088443,45.7921,3680.3,3680.2,0.89098941]
[1754330088645,45.7921,3680.3,3680.2,20.10698941]
[1754330090144,45.7921,3680.3,3680.2,22.67758941]
[1754330090845,45.7921,3680.3,3680.2,25.10718941]
[1754330092846,41.9634,3680.3,3680.2,25.10718941]
[1754330093142,43.768,3680.3,3680.2,25.10718941]
[1754330093350,45.0147,3680.3,3680.2,25.10718941]
[1754330094448,41.9634,3680.3,3680.2,25.10718941]
[1754330094639,42.8918,3680.3,3680.2,25.10718941]
[1754330094840,43.768,3680.3,3680.2,25.10718941]
[1754330095043,40.8,3680.3,3680.2,32.53336095]
[1754330097547,6.117,3681.2,3681.1,0.54326]
[1754330097746,9.15316876,3681.2,3681.1,19.158]
[1754330097949,5.037,3681.1,3681.0,20.29186]
[1754330098246,5.94536876,3681.1,3681.0,20.29186]
[1754330098549,46.74536876,3681.1,3681.0,20.29186]
[1754330099339,42.90546876,3681.1,3681.0,28.42712095]
[1754330099740,43.83976876,3681.1,3681.0,28.42712095]
[1754330100045,45.96756876,3681.1,3681.0,28.42712095]
[1754330100354,45.96756876,3681.1,3681.0,27.14072095]
[1754330100546,45.96756876,3681.1,3681.0,28.42712095]
[1754330100843,45.96756876,3681.1,3681.0,21.18284941]
[1754330101844,45.96756876,3681.1,3681.0,22.00174941]
[1754330102044,1.9749,3681.0,3680.9,0.54328]
[1754330102348,5.037,3681.0,3680.9,0.54328]
[1754330102650,5.037,3680.9,3680.8,19.68929]
[1754330103050,2.9092,3680.9,3680.8,28.40315095]
[1754330103349,40.8,3680.9,3680.8,28.40315095]
[1754330106748,43.8621,3680.9,3680.8,28.40315095]
[1754330109748,41.7343,3680.9,3680.8,28.40315095]
[1754330109953,40.8,3680.9,3680.8,28.40315095]
[1754330111045,4.14601059,3682.0,3681.9,1.61084]
[1754330111252,5.64096045,3682.0,3681.9,24.24634]
[1754330111449,5.64096045,3682.0,3681.9,28.15901154]
[1754330112041,46.44096045,3682.0,3681.9,28.15901154]
[1754330112241,1.9749,3681.5,3681.4,3.7864]
[1754330112560,5.037,3681.5,3681.4,21.717]
[1754330112751,5.037,3681.5,3681.4,25.93537154]
[1754330113251,45.837,3681.5,3681.4,23.89558154]
[1754330113453,45.837,3681.5,3681.4,23.89358154]
[1754330113651,41.7108,3681.5,3681.4,27.36758154]
[1754330113950,41.7108,3681.5,3681.4,27.36358154]
[1754330114346,40.8,3681.5,3681.4,27.36358154]
[1754330114741,42.017,3681.5,3681.4,27.36358154]
[1754330114948,42.9278,3681.5,3681.4,26.77428154]
[1754330115150,43.8621,3681.5,3681.4,26.77428154]
[1754330115350,43.8621,3681.5,3681.4,23.88558154]
[1754330115747,43.8621,3681.5,3681.3,0.54322]
[1754330115954,1.9749,3681.2,3681.1,39.108]
[1754330116152,5.037,3681.2,3681.1,58.76926]
[1754330116544,45.837,3681.2,3681.1,58.76926]
[1754330116955,45.837,3681.2,3681.1,19.66126]
[1754330117348,45.837,3681.2,3681.1,19.113]
[1754330117654,42.7749,3681.2,3681.1,19.113]
[1754330117847,45.837,3681.2,3681.1,19.113]
[1754330118649,45.837,3681.2,3681.1,21.2069]
[1754330118849,45.837,3681.2,3681.1,20.3223]
[1754330119150,45.837,3681.2,3681.1,19.113]
[1754330119555,45.837,3681.2,3681.0,0.54327]
[1754330119556,5.037,3681.1,3681.0,0.54327]
[1754330119750,5.037,3681.1,3681.0,19.65427]
[1754330120058,20.47482,3682.0,3680.3,1.94373]
[1754330120059,1.9749,3680.8,3680.3,3.2078]
[1754330120356,5.037,3680.6,3680.5,4.76172154]
[1754330120955,45.837,3680.6,3680.5,0.54335]
[1754330121653,45.837,3680.6,3680.3,3.2078]
[1754330121654,3.0621,3680.5,3680.3,3.2078]
[1754330121851,5.037,3680.4,3680.3,19.098]
[1754330122155,5.037,3679.9,3679.8,0.54345]
[1754330122352,5.037,3679.9,3679.8,19.63745]
[1754330122552,45.837,3679.9,3679.8,0.54345]
[1754330122952,45.837,3679.9,3679.8,19.63645]
[1754330123146,45.837,3679.9,3679.7,0.54346]
[1754330123351,5.037,3679.8,3679.7,0.54346]
[1754330123551,5.037,3679.8,3679.7,19.64146]
[1754330124055,45.837,3679.8,3679.7,19.64146]
[1754330124452,45.837,3679.8,3679.7,1.75276]
[1754330124655,45.837,3679.8,3679.7,21.73136]
[1754330125253,45.837,3679.8,3679.7,22.22046]
[1754330125847,45.837,3679.8,3679.7,19.63746]
[1754330126048,45.837,3679.8,3679.7,0.54346]
[1754330126252,45.837,3679.8,3679.7,19.62546]
[1754330126756,45.837,3679.8,3679.7,21.72976]
[1754330127158,44.9027,3679.8,3679.7,3.49436]
[1754330127454,45.862,3679.8,3679.7,0.54346]
[1754330127659,45.862,3679.8,3679.7,19.61946]
[1754330127861,45.862,3679.8,3679.7,19.62246]
[1754330128560,45.862,3679.8,3679.7,0.54346]
[1754330128862,45.862,3679.8,3679.7,19.61746]
[1754330129060,45.862,3679.8,3679.7,0.54346]
[1754330129262,45.862,3679.8,3679.7,19.61646]
[1754330130060,45.862,3679.8,3679.7,22.24176]
[1754330131361,45.862,3679.8,3679.7,22.56736]
[1754330131560,45.89920361,3679.8,3679.7,22.56736]
[1754330132255,40.83720361,3679.8,3679.4,3.2078]
[1754330132564,2.10680361,3679.6,3679.5,4.21837154]
[1754330132755,2.10680361,3679.6,3679.4,0.5435]